fUST/lending_fUST_20250802
["ID","MTS","AMOUNT","RATE_DAILY","PERIOD"]
[376784421,1754123361706,-460.0,0.00024657,10]
[376784422,1754123361734,-460.0,0.00024657,10]
[376784423,1754123361762,-416.74394416,0.00024657,10]
[376784424,1754123361789,-461.43229512,0.00024657,10]
[376784425,1754123361816,-417.51632796,0.00024657,10]
[376784426,1754123362135,-42.48367204,0.00024657,10]
[376784427,1754123362163,-460.0,0.00024657,10]
[376784428,1754123362192,-460.0,0.00024657,10]
[376784429,1754123362219,-522.77533732,0.00024657,10]
[376784430,1754123362250,-461.05427693,0.00024657,10]
[376784431,1754123362278,-462.82869127,0.00024657,10]
[376784432,1754123362310,-460.0,0.00024657,10]
[376784433,1754123362339,-460.0,0.00024657,10]
[376784434,1754123362366,-461.67762094,0.00024657,10]
[376784435,1754123362393,-460.0,0.00024657,10]
[376784436,1754123362420,-460.0,0.00024657,10]
[376784437,1754123362448,-118.360803,0.00024657,10]
[376784438,1754123362649,487.60552512,0.0002455,2]
[376784439,1754123362685,-341.639197,0.00024657,10]
[376784440,1754123362714,-460.0,0.00024657,10]
[376784441,1754123362743,-461.4049417,0.00024657,10]
[376784442,1754123362769,-156.36003472,0.00024657,10]
[376784443,1754123362799,-460.0,0.00024657,10]
[376784444,1754123362827,-462.63813508,0.00024657,10]
[376784445,1754123362856,-460.0,0.00024657,10]
[376784446,1754123362884,-232.80795498,0.00024657,10]
[376784447,1754123362911,-460.0,0.00024657,10]
[376784448,1754123362940,-460.0,0.00024657,10]
[376784449,1754123362968,-460.0,0.00024657,10]
[376784450,1754123362996,-460.0,0.00024657,10]
[376784451,1754123363431,-460.0,0.00024657,10]
[376784452,1754123363460,-460.0,0.00024657,10]
[376784453,1754123363491,-460.0,0.00024657,10]
[376784454,1754123363519,-460.0,0.00024657,10]
[376784455,1754123363550,-460.0,0.00024657,10]
[376784456,1754123363578,-428.9728489,0.00024657,10]
[376784457,1754123363607,-460.0,0.00024657,10]
[376784458,1754123363637,-460.0,0.00024657,10]
[376784459,1754123363666,-460.0,0.00024657,10]
[376784460,1754123363694,-460.0,0.00024657,10]
[376784461,1754123363722,-402.0543022,0.00024657,10]
[376784462,1754123363778,-57.9456978,0.00024657,10]
[376784463,1754123363805,-460.0,0.00024657,10]
[376784464,1754123363835,-460.0,0.00024657,10]
[376784465,1754123363864,-460.0,0.00024657,10]
[376784466,1754123363893,-463.27187243,0.00024657,10]
[376784467,1754123363921,-468.64051163,0.00024657,10]
[376784468,1754123363948,-460.0,0.00024657,10]
[376784469,1754123363977,-460.0,0.00024657,10]
[376784470,1754123364005,-460.0,0.00024657,10]
[376784471,1754123364032,-460.0,0.00024657,10]
[376784472,1754123364176,-460.0,0.00024657,10]
[376784473,1754123364206,-200.28383628,0.00024657,10]
[376784474,1754123364495,-259.71616372,0.00024657,10]
[376784475,1754123364524,-460.0,0.00024657,10]
[376784476,1754123364553,-460.0,0.00024657,10]
[376784477,1754123364588,-460.0,0.00024657,10]
[376784478,1754123364619,-460.0,0.00024657,10]
[376784479,1754123364650,-460.0,0.00024657,10]
[376784480,1754123364682,-460.0,0.00024657,10]
[376784481,1754123364712,-408.97584721,0.00024657,10]
[376784482,1754123364741,-460.0,0.00024657,10]
[376784483,1754123364771,-460.0,0.00024657,10]
[376784484,1754123364801,-460.0,0.00024657,10]
[376784485,1754123365149,-460.0,0.00024657,10]
[376784486,1754123365183,-460.0,0.00024657,10]
[376784487,1754123365223,-464.4841895,0.00024657,10]
[376784488,1754123365260,-460.0,0.00024657,10]
[376784489,1754123365297,-460.0,0.00024657,10]
[376784490,1754123365335,-455.72188028,0.00024657,10]
[376784491,1754123365371,-460.0,0.00024657,10]
[376784492,1754123365410,-460.0,0.00024657,10]
[376784493,1754123365447,-460.0,0.00024657,10]
[376784494,1754123365481,-367.258229,0.00024657,10]
[376784495,1754123365517,-303.39647819,0.00024657,10]
[376784496,1754123365552,-151.0,0.00024657,7]
[376784497,1754123365778,-461.673734,0.00024657,10]
[376784498,1754123365811,-471.91796571,0.00024657,10]
[376784499,1754123365848,-460.0,0.00024657,10]
[376784500,1754123365884,-460.0,0.00024657,10]
[376784501,1754123365918,-524.73214164,0.00024657,10]
[376784502,1754123365959,-460.0,0.00024657,10]
[376784503,1754123365996,-460.0,0.00024657,10]
[376784504,1754123366053,-460.0,0.00024657,10]
[376784505,1754123366094,-460.0,0.00024657,10]
[376784506,1754123366132,-460.0,0.00024657,10]
[376784507,1754123366168,-283.13695192,0.00024657,10]
[376784508,1754123366676,-77.07841346,0.00024657,10]
[376784509,1754123366707,-460.0,0.00024657,10]
[376784510,1754123366737,-460.0,0.00024657,10]
[376784511,1754123366766,-460.0,0.00024657,10]
[376784512,1754123366795,-460.0,0.00024657,10]
[376784513,1754123366827,-549.25866131,0.00024657,10]
[376784514,1754123366855,-460.0,0.00024657,10]
[376784515,1754123366883,-460.0,0.00024657,10]
[376784516,1754123366912,-461.81384529,0.00024657,10]
[376784517,1754123366942,-460.0,0.00024657,10]
[376784518,1754123366971,-460.0,0.00024657,10]
[376784519,1754123366999,-3.69815988,0.00024657,10]
[376784520,1754123367040,-456.30184012,0.00024657,10]
[376784521,1754123367069,-460.0,0.00024657,10]
[376784522,1754123367102,-460.0,0.00024657,10]
[376784523,1754123367133,-460.0,0.00024657,10]
[376784524,1754123367162,-460.0,0.00024657,10]
[376784525,1754123367191,-460.0,0.00024657,10]
[376784526,1754123367221,-460.0,0.00024657,10]
[376784527,1754123367253,-460.0,0.00024657,10]
[376784528,1754123367282,-460.0,0.00024657,10]
[376784529,1754123367311,-460.0,0.00024657,10]
[376784530,1754123367340,-347.39631976,0.00024657,10]
[376784531,1754123367700,-112.60368024,0.00024657,10]
[376784532,1754123367729,-268.02119063,0.00024657,10]
[376784533,1754123367758,-460.0,0.00024657,10]
[376784534,1754123367787,-460.0,0.00024657,10]
[376784535,1754123367815,-460.0,0.00024657,10]
[376784536,1754123367842,-460.0,0.00024657,10]
[376784537,1754123367871,-460.0,0.00024657,10]
[376784538,1754123367899,-460.0,0.00024657,10]
[376784539,1754123367930,-460.0,0.00024657,10]
[376784540,1754123367960,-460.0,0.00024657,10]
[376784541,1754123367993,-460.0,0.00024657,10]
[376784542,1754123368023,-460.0,0.00024657,10]
[376784543,1754123368261,-460.0,0.00024657,10]
[376784544,1754123368291,-460.0,0.00024657,10]
[376784545,1754123368320,-460.0,0.00024657,10]
[376784546,1754123368352,-460.0,0.00024657,10]
[376784547,1754123368483,-460.0,0.00024657,10]
[376784548,1754123368511,-463.10907313,0.00024657,10]
[376784549,1754123368541,-460.0,0.00024657,10]
[376784550,1754123368569,-460.0,0.00024657,10]
[376784551,1754123368597,-319.6297667,0.00024657,10]
[376784552,1754123368625,-460.0,0.00024657,10]
[376784553,1754123368653,-460.0,0.00024657,10]
[376784554,1754123368938,-460.0,0.00024657,10]
[376784555,1754123368967,-489.99,0.00024657,10]
[376784556,1754123368996,-460.0,0.00024657,10]
[376784557,1754123369023,-512.50085656,0.00024657,10]
[376784558,1754123369052,-502.22799852,0.00024657,10]
[376784559,1754123369080,-460.0,0.00024657,10]
[376784560,1754123369108,-460.0,0.00024657,10]
[376784561,1754123369137,-276.52722107,0.00024657,10]
[376784562,1754123369165,-461.23788668,0.00024657,10]
[376784563,1754123369193,-456.0,0.00024657,10]
[376784564,1754123369221,-460.0,0.00024657,10]
[376784565,1754123369313,-460.0,0.00024657,10]
[376784566,1754123369343,-460.0,0.00024657,10]
[376784567,1754123369371,-460.0,0.00024657,10]
[376784568,1754123369399,-460.0,0.00024657,10]
[376784569,1754123369428,-417.68039675,0.00024657,10]
[376784570,1754123369457,-460.0,0.00024657,10]
[376784571,1754123369489,-460.0,0.00024657,10]
[376784572,1754123369520,-460.0,0.00024657,10]
[376784573,1754123369551,-460.0,0.00024657,10]
[376784574,1754123369581,-460.0,0.00024657,10]
[376784575,1754123369611,-424.6392065,0.00024657,10]
[376784576,1754123370049,-35.3607935,0.00024657,10]
[376784577,1754123370079,-561.00897026,0.00024657,10]
[376784578,1754123370108,-460.0,0.00024657,10]
[376784579,1754123370137,-460.0,0.00024657,10]
[376784580,1754123370166,-460.0,0.00024657,10]
[376784581,1754123370195,-460.0,0.00024657,10]
[376784582,1754123370224,-460.0,0.00024657,10]
[376784583,1754123370255,-460.0,0.00024657,10]
[376784584,1754123370284,-460.0,0.00024657,10]
[376784585,1754123370313,-460.0,0.00024657,10]
[376784586,1754123370342,-460.0,0.00024657,10]
[376784587,1754123370369,-67.26047248,0.00024657,10]
[376784588,1754123370715,-392.73952752,0.00024657,10]
[376784589,1754123370744,-460.0,0.00024657,10]
[376784590,1754123370774,-510.03595157,0.00024657,10]
[376784591,1754123370803,-354.97455592,0.00024657,10]
[376784592,1754123370833,-460.0,0.00024657,10]
[376784593,1754123370863,-446.68995042,0.00024657,10]
[376784594,1754123370890,-460.0,0.00024657,10]
[376784595,1754123370919,-460.0,0.00024657,10]
[376784596,1754123370947,-500.0,0.00024657,7]
[376784597,1754123370976,-317.25516707,0.00024657,10]
[376784598,1754123371005,-151.0,0.00024657,7]
[376784599,1754123371033,-446.92014222,0.00024657,10]
[376784600,1754123371193,-80.76941056,0.00024657,10]
[376784601,1754123371223,-463.11919013,0.00024657,7]
[376784602,1754123371259,-460.0,0.00024657,10]
[376784603,1754123371288,-460.0,0.00024657,10]
[376784604,1754123371315,-224.93533932,0.00024657,10]
[376784605,1754123371345,-460.0,0.00024657,10]
[376784606,1754123371372,-460.0,0.00024657,10]
[376784607,1754123371400,-460.0,0.00024657,10]
[376784608,1754123371428,-460.0,0.00024657,10]
[376784609,1754123371457,-460.0,0.00024657,10]
[376784610,1754123371485,-300.0,0.00024657,4]
[376784611,1754123371513,-179.08631451,0.00024657,4]
[376784612,1754123371541,-460.0,0.00024657,10]
[376784613,1754123371868,-460.0,0.00024657,10]
[376784614,1754123371896,-460.0,0.00024657,10]
[376784615,1754123371923,-460.0,0.00024657,10]
[376784616,1754123371951,-526.37830837,0.00024657,10]
[376784617,1754123371978,-460.0,0.00024657,10]
[376784618,1754123372005,-460.0,0.00024657,10]
[376784619,1754123372032,-460.0,0.00024657,10]
[376784620,1754123372059,-460.0,0.00024657,3]
[376784621,1754123372086,-460.0,0.00024657,10]
[376784622,1754123372115,-460.0,0.00024657,10]
[376784623,1754123372142,-205.37718621,0.00024657,10]
[376784624,1754123372323,-256.48901084,0.00024657,10]
[376784625,1754123372352,-460.0,0.00024657,10]
[376784626,1754123372381,-460.0,0.00024657,10]
[376784627,1754123372408,-460.0,0.00024657,10]
[376784628,1754123372437,-460.0,0.00024657,10]
[376784629,1754123372465,-460.0,0.00024657,10]
[376784630,1754123372493,-460.0,0.00024657,10]
[376784631,1754123372520,-389.2,0.00024657,10]
[376784632,1754123372548,-460.0,0.00024657,10]
[376784633,1754123372576,-460.0,0.00024657,10]
[376784634,1754123372604,-460.0,0.00024657,10]
[376784635,1754123373131,-460.0,0.00024657,10]
[376784636,1754123373161,-460.0,0.00024657,10]
[376784637,1754123373191,-460.0,0.00024657,10]
[376784638,1754123373220,-460.0,0.00024657,10]
[376784639,1754123373254,-460.0,0.00024657,10]
[376784640,1754123373284,-460.0,0.00024657,10]
[376784641,1754123373316,-460.0,0.00024657,10]
[376784642,1754123373345,-460.0,0.00024657,10]
[376784643,1754123373375,-460.0,0.00024657,10]
[376784644,1754123373407,-460.0,0.00024657,10]
[376784645,1754123373437,-340.0,0.00024657,10]
[376784646,1754123373786,-120.0,0.00024657,10]
[376784647,1754123373818,-460.0,0.00024657,10]
[376784648,1754123373849,-460.0,0.00024657,10]
[376784649,1754123373879,-439.9,0.00024657,10]
[376784650,1754123373909,-462.19045101,0.00024657,10]
[376784651,1754123373938,-460.0,0.00024657,10]
[376784652,1754123373969,-460.0,0.00024657,10]
[376784653,1754123373999,-460.0,0.00024657,10]
[376784654,1754123374028,-460.0,0.00024657,10]
[376784655,1754123374057,-460.0,0.00024657,10]
[376784656,1754123374087,-460.0,0.00024657,10]
[376784657,1754123374116,-155.99,0.00024657,10]
[376784658,1754123374424,-436.96704936,0.00024657,10]
[376784659,1754123374452,-460.0,0.00024657,10]
[376784660,1754123374480,-460.0,0.00024657,10]
[376784661,1754123374508,-460.0,0.00024657,10]
[376784662,1754123374658,-460.0,0.00024657,10]
[376784663,1754123374686,-460.0,0.00024657,10]
[376784664,1754123374714,-460.0,0.00024657,10]
[376784665,1754123374743,-460.0,0.00024657,10]
[376784666,1754123374771,-460.0,0.00024657,10]
[376784667,1754123374799,-460.0,0.00024657,10]
[376784668,1754123374827,-386.06590128,0.00024657,10]
[376784669,1754123374894,-73.93409872,0.00024657,10]
[376784670,1754123374923,-460.0,0.00024657,10]
[376784671,1754123374953,-460.87536298,0.00024657,10]
[376784672,1754123374983,-460.0,0.00024657,10]
[376784673,1754123375010,-460.0,0.00024657,10]
[376784674,1754123375038,-460.0,0.00024657,10]
[376784675,1754123375065,-383.83442842,0.00024657,10]
[376784676,1754123375094,-460.88695694,0.00024657,10]
[376784677,1754123375122,-464.41813362,0.00024657,10]
[376784678,1754123375150,-460.0,0.00024657,10]
[376784679,1754123375178,-460.0,0.00024657,10]
[376784680,1754123375207,-332.10203864,0.00024657,10]
[376784681,1754123375535,-127.89796136,0.00024657,10]
[376784682,1754123375563,-504.91378807,0.00024657,10]
[376784683,1754123375591,-460.0,0.00024657,10]
[376784684,1754123375620,-460.0,0.00024657,10]
[376784685,1754123375648,-460.0,0.00024657,10]
[376784686,1754123375676,-460.0,0.00024657,10]
[376784687,1754123375707,-460.0,0.00024657,10]
[376784688,1754123375738,-460.0,0.00024657,10]
[376784689,1754123375766,-460.0,0.00024657,10]
[376784690,1754123375797,-460.0,0.00024657,10]
[376784691,1754123375825,-460.0,0.00024657,10]
[376784692,1754123376285,-460.0,0.00024657,10]
[376784693,1754123376315,-259.09522382,0.00024657,10]
[376784694,1754123376347,-460.0,0.00024657,10]
[376784695,1754123376377,-460.0,0.00024657,10]
[376784696,1754123376407,-460.0,0.00024657,10]
[376784697,1754123376438,-460.0,0.00024657,10]
[376784698,1754123376468,-460.0,0.00024657,10]
[376784699,1754123376498,-460.0,0.00024657,10]
[376784700,1754123376526,-460.0,0.00024657,10]
[376784701,1754123376556,-460.0,0.00024657,10]
[376784702,1754123376585,-460.0,0.00024657,10]
[376784703,1754123376795,-460.0,0.00024657,10]
[376784704,1754123376823,-460.0,0.00024657,10]
[376784705,1754123376857,-460.0,0.00024657,10]
[376784706,1754123376886,-460.0,0.00024657,10]
[376784707,1754123376914,-151.23,0.00024657,10]
[376784708,1754123376943,-464.3753645,0.00024657,10]
[376784709,1754123376973,-462.12925686,0.00024657,10]
[376784710,1754123377002,-460.0,0.00024657,10]
[376784711,1754123377031,-460.0,0.00024657,10]
[376784712,1754123377060,-460.0,0.00024657,10]
[376784713,1754123377089,-460.0,0.00024657,10]
[376784714,1754123377117,-24.53075728,0.00024657,10]
[376784715,1754123377462,-435.46924272,0.00024657,10]
[376784716,1754123377493,-460.0,0.00024657,10]
[376784717,1754123377523,-473.06860338,0.00024657,10]
[376784718,1754123377552,-460.0,0.00024657,10]
[376784719,1754123377585,-460.0,0.00024657,10]
[376784720,1754123377617,-460.0,0.00024657,10]
[376784721,1754123377646,-460.0,0.00024657,10]
[376784722,1754123377675,-460.0,0.00024657,10]
[376784723,1754123377704,-460.0,0.00024657,10]
[376784724,1754123377734,-460.0,0.00024657,10]
[376784725,1754123377764,-362.9243078,0.00024657,10]
[376784726,1754123378014,-97.0756922,0.00024657,10]
[376784727,1754123378042,-460.0,0.00024657,10]
[376784728,1754123378071,-460.0,0.00024657,10]
[376784729,1754123378101,-460.0,0.00024657,10]
[376784730,1754123378129,-460.0,0.00024657,10]
[376784731,1754123378157,-460.0,0.00024657,10]
[376784732,1754123378187,-307.11128887,0.00024657,10]
[376784733,1754123378215,-460.0,0.00024657,10]
[376784734,1754123378250,-460.0,0.00024657,10]
[376784735,1754123378278,-460.0,0.00024657,10]
[376784736,1754123378306,-460.0,0.00024657,10]
[376784737,1754123378334,-451.62603786,0.00024657,10]
[376784738,1754123378535,-8.37396214,0.00024657,10]
[376784739,1754123378563,-460.0,0.00024657,10]
[376784740,1754123378591,-151.0,0.00024657,7]
[376784741,1754123378619,-460.0,0.00024657,10]
[376784742,1754123378737,-460.0,0.00024657,10]
[376784743,1754123378766,-460.0,0.00024657,10]
[376784744,1754123378794,-460.0,0.00024657,10]
[376784745,1754123378823,-171.62877424,0.00024657,10]
[376784746,1754123378850,-378.82915785,0.00024657,10]
[376784747,1754123378877,-152.04028,0.00024657,7]
[376784748,1754123378904,-460.0,0.00024657,10]
[376784749,1754123378932,-460.0,0.00024657,10]
[376784750,1754123378960,-460.0,0.00024657,10]
[376784751,1754123378987,-456.25565154,0.00024657,10]
[376784752,1754123379252,-3.74434846,0.00024657,10]
[376784753,1754123379282,-460.0,0.00024657,10]
[376784754,1754123379310,-236.91917035,0.00024657,10]
[376784755,1754123379341,-460.0,0.00024657,10]
[376784756,1754123379370,-460.0,0.00024657,10]
[376784757,1754123379398,-460.0,0.00024657,10]
[376784758,1754123379427,-343.67648753,0.00024657,10]
[376784759,1754123379455,-460.0,0.00024657,10]
[376784760,1754123379484,-460.0,0.00024657,10]
[376784761,1754123379512,-460.0,0.00024657,10]
[376784762,1754123379540,-460.0,0.00024657,10]
[376784763,1754123379568,-460.0,0.00024657,10]
[376784764,1754123379596,-91.31998732,0.00024657,10]
[376784765,1754123379805,-368.68001268,0.00024657,10]
[376784766,1754123379833,-463.10560113,0.00024657,10]
[376784767,1754123379861,-151.0,0.00024657,7]
[376784768,1754123379889,-151.0,0.00024657,7]
[376784769,1754123379916,-151.0,0.00024657,7]
[376784770,1754123379943,-151.0,0.00024657,7]
[376784771,1754123379975,-460.0,0.00024657,10]
[376784772,1754123380003,-151.0,0.00024657,7]
[376784773,1754123380030,-460.0,0.00024657,10]
[376784774,1754123380058,-460.0,0.00024657,10]
[376784775,1754123380085,-151.0,0.00024657,7]
[376784776,1754123380204,-151.0,0.00024657,7]
[376784777,1754123380232,-151.0,0.00024657,7]
[376784778,1754123380263,-230.29703,0.00024657,7]
[376784779,1754123380293,-460.0,0.00024657,10]
[376784780,1754123380320,-460.0,0.00024657,10]
[376784781,1754123380348,-398.85440366,0.00024657,10]
[376784782,1754123380722,-62.12590506,0.00024657,10]
[376784783,1754123380750,-460.0,0.00024657,10]
[376784784,1754123380777,-462.3550142,0.00024657,10]
[376784785,1754123380805,-460.0,0.00024657,10]
[376784786,1754123380832,-460.0,0.00024657,10]
[376784787,1754123380860,-460.0,0.00024657,10]
[376784788,1754123380888,-460.0,0.00024657,10]
[376784789,1754123380915,-460.0,0.00024657,10]
[376784790,1754123380941,-460.0,0.00024657,10]
[376784791,1754123380967,-460.0,0.00024657,10]
[376784792,1754123380993,-460.0,0.00024657,10]
[376784793,1754123381021,-211.03816148,0.00024657,10]
[376784794,1754123381542,-248.96183852,0.00024657,10]
[376784795,1754123381570,-461.49463714,0.00024657,10]
[376784796,1754123381600,-460.0,0.00024657,10]
[376784797,1754123381629,-460.0,0.00024657,10]
[376784798,1754123381656,-460.0,0.00024657,10]
[376784799,1754123381683,-460.0,0.00024657,10]
[376784800,1754123381710,-460.0,0.00024657,10]
[376784801,1754123381737,-460.0,0.00024657,10]
[376784802,1754123381764,-460.0,0.00024657,10]
[376784803,1754123381792,-440.74463188,0.00024657,10]
[376784804,1754123381820,-460.0,0.00024657,10]
[376784805,1754123381865,-460.0,0.00024657,10]
[376784806,1754123381895,-460.0,0.00024657,10]
[376784807,1754123381924,-460.0,0.00024657,10]
[376784808,1754123381952,-460.0,0.00024657,10]
[376784809,1754123381980,-460.0,0.00024657,10]
[376784810,1754123382008,-460.0,0.00024657,10]
[376784811,1754123382036,-462.51208578,0.00024657,10]
[376784812,1754123382062,-461.16529504,0.00024657,10]
[376784813,1754123382090,-467.46209804,0.00024657,10]
[376784814,1754123382119,-460.0,0.00024657,10]
[376784815,1754123382148,-317.72104228,0.00024657,10]
[376784816,1754123382646,-142.27895772,0.00024657,10]
[376784817,1754123382675,-219.61239014,0.00024657,10]
[376784818,1754123382704,-460.0,0.00024657,10]
[376784819,1754123382732,-460.0,0.00024657,10]
[376784820,1754123382760,-325.06568275,0.00024657,10]
[376784821,1754123382789,-460.0,0.00024657,10]
[376784822,1754123382816,-460.0,0.00024657,10]
[376784823,1754123382844,-460.0,0.00024657,10]
[376784824,1754123382872,-460.0,0.00024657,10]
[376784825,1754123382899,-463.38693855,0.00024657,10]
[376784826,1754123382926,-462.04936641,0.00024657,10]
[376784827,1754123382953,-460.0,0.00024657,10]
[376784828,1754123383130,-460.53397459,0.00024657,10]
[376784829,1754123383156,-460.0,0.00024657,10]
[376784830,1754123383182,-460.0,0.00024657,10]
[376784831,1754123383208,-460.59220102,0.00024657,10]
[376784832,1754123383235,-460.0,0.00024657,10]
[376784833,1754123383266,-460.0,0.00024657,10]
[376784834,1754123383294,-460.0,0.00024657,10]
[376784835,1754123383321,-461.91618608,0.00024657,10]
[376784836,1754123383350,-460.0,0.00024657,10]
[376784837,1754123383377,-460.0,0.00024657,10]
[376784838,1754123383406,-333.91527662,0.00024657,10]
[376784839,1754123383833,-126.08472338,0.00024657,10]
[376784840,1754123383864,-460.0,0.00024657,10]
[376784841,1754123383895,-460.0,0.00024657,10]
[376784842,1754123383924,-460.0,0.00024657,10]
[376784843,1754123383952,-470.57,0.00024657,10]
[376784844,1754123383980,-460.0,0.00024657,10]
[376784845,1754123384008,-461.93716041,0.00024657,10]
[376784846,1754123384036,-460.0,0.00024657,10]
[376784847,1754123384064,-460.0,0.00024657,10]
[376784848,1754123384093,-460.91880732,0.00024657,10]
[376784849,1754123384121,-171.314369,0.00024657,7]
[376784850,1754123384150,-171.314369,0.00024657,7]
[376784851,1754123384178,-295.72114178,0.00024657,10]
[376784852,1754123384609,-164.27885822,0.00024657,10]
[376784853,1754123384639,-460.0,0.00024657,10]
[376784854,1754123384669,-2347.82,0.00024657,10]
[376784855,1754123384701,-1707.98228356,0.00024657,10]
[376784856,1754123385316,-639.83771644,0.00024657,10]
[376784857,1754123385351,-2347.82,0.00024657,10]
[376784858,1754123385382,-1676.86456712,0.00024657,10]
[376784859,1754123385622,-670.95543288,0.00024657,10]
[376784860,1754123385652,-2347.82,0.00024657,10]
[376784861,1754123385681,-1614.62913424,0.00024657,10]
[376784862,1754123386069,-733.19086576,0.00024657,10]
[376784863,1754123386101,-171.314369,0.00024657,7]
[376784864,1754123386130,-171.314369,0.00024657,7]
[376784865,1754123386160,-460.0,0.00024657,10]
[376784866,1754123386190,-460.0,0.00024657,10]
[376784867,1754123386429,-461.46987122,0.00024657,10]
[376784868,1754123386459,-460.0,0.00024657,10]
[376784869,1754123386488,-169.89901445,0.00024657,10]
[376784870,1754123386517,-541.15,0.00024657,10]
[376784871,1754123386548,-395.50302114,0.00024657,10]
[376784872,1754123387103,-1952.31697886,0.00024657,10]
[376784873,1754123387142,-2347.82,0.00024657,10]
[376784874,1754123387184,-2347.82,0.00024657,10]
[376784875,1754123387214,-2347.82,0.00024657,10]
[376784876,1754123387247,-208.06615693,0.00024657,10]
[376784877,1754123387506,-192.58768614,0.00024657,10]
[376784878,1754123387538,-976.03462772,0.00024657,10]
[376784879,1754123396667,-250.51443834,0.00024657,10]
[376784880,1754123396681,-169.89901445,0.00024657,10]
[376784881,1754123396695,-541.15,0.00024657,10]
[376784882,1754123396710,-1386.25654721,0.00024657,10]
[376784883,1754123396718,-961.56345279,0.00024657,10]
[376784884,1754123396737,-1386.25654721,0.00024657,10]
[376784885,1754123396747,-460.0,0.00024657,10]
[376784886,1754123396756,-106.06043165,0.00024657,10]
[376784887,1754123396771,-2241.75956835,0.00024657,10]
[376784888,1754123396780,-106.06043165,0.00024657,10]
[376784889,1754123396795,-1399.72604228,0.00024657,10]
[376784890,1754123396810,-842.03352607,0.00024657,10]
[376784891,1754123396819,-460.0,0.00024657,10]
[376784892,1754123396828,-1045.78647393,0.00024657,10]
[376784893,1754123396842,-1302.03352607,0.00024657,10]
[376784894,1754123396851,-460.0,0.00024657,10]
[376784895,1754123396861,-585.78647393,0.00024657,10]
[376784896,1754123396876,-400.65384307,0.00024657,10]
[376784897,1754123396895,-192.58768614,0.00024657,10]
[376784898,1754123396910,-1168.79199686,0.00024657,10]
[376784899,1754123396920,-463.99029633,0.00024657,10]
[376784900,1754123396930,-2347.82,0.00024657,10]
[376784901,1754123396939,-2347.82,0.00024657,10]
[376784902,1754123396948,-462.44587602,0.00024657,10]
[376784903,1754123396958,-1847.92183079,0.00024657,10]
[376784904,1754123407235,824.31826487,0.00023917,2]
[376784905,1754123410078,1479.11984722,0.00024456,2]
[376784906,1754123410110,10000.0,0.00024456,2]
[376784907,1754123410137,10000.0,0.00024456,2]
[376784908,1754123410161,10000.0,0.00024456,2]
[376784909,1754123410185,10000.0,0.00024456,2]
[376784910,1754123410207,10000.0,0.00024456,2]
[376784911,1754123410230,10000.0,0.00024456,2]
[376784912,1754123410256,10000.0,0.00024456,2]
[376784913,1754123410279,10000.0,0.00024456,2]
[376784914,1754123410304,10000.0,0.00024456,2]
[376784915,1754123410327,10000.0,0.00024456,2]
[376784916,1754123410352,10000.0,0.00024456,2]
[376784917,1754123410375,10000.0,0.00024456,2]
[376784918,1754123410397,10000.0,0.00024456,2]
[376784919,1754123410420,10000.0,0.00024456,2]
[376784920,1754123410442,10000.0,0.00024456,2]